bitfinex/quotes_SOLUSD_20250917
["timestamp","ask_amount","ask_price","bid_price","bid_amount"]
[1758096476230,3.39334353,236.55,236.54,39.09761477]
[1758096476744,3.39334353,236.55,236.54,4.25761477]
[1758096477040,0.06,236.55,236.54,39.09761477]
[1758096477225,3.39334353,236.55,236.54,39.09761477]
[1758096477534,3.39334353,236.55,236.54,52.97753192]
[1758096477535,0.06,236.55,236.54,52.97753192]
[1758096477715,0.06,236.55,236.54,56.31087545]
[1758096479812,0.06,236.55,236.54,52.97753192]
[1758096481128,0.06,236.55,236.54,52.91753192]
[1758096483050,1e-08,236.55,236.54,52.91753192]
[1758096483348,1e-08,236.55,236.54,132.84029339]
[1758096483533,1e-08,236.55,236.54,132.41753192]
[1758096484835,1e-08,236.55,236.54,145.12194545]
[1758096485545,1e-08,236.58,236.57,39.59559401]
[1758096485842,1e-08,236.58,236.57,79.32032551]
[1758096486361,1e-08,236.58,236.57,159.24303337]
[1758096486654,1e-08,236.58,236.57,158.82032551]
[1758096487353,1e-08,236.58,236.57,163.04740417]
[1758096489050,1e-08,236.58,236.57,43.82267267]
[1758096489357,1e-08,236.58,236.57,78.42267267]
[1758096489559,1e-08,236.58,236.57,52.42267267]
[1758096489735,1e-08,236.58,236.57,57.48740417]
[1758096490055,1e-08,236.58,236.57,17.82267267]
[1758096490250,1e-08,236.58,236.57,52.44267267]
[1758096491735,1e-08,236.58,236.57,52.72699581]
[1758096493860,1e-08,236.58,236.57,44.10699581]
[1758096494170,1e-08,236.58,236.57,78.66699581]
[1758096494745,1e-08,236.58,236.57,83.44740417]
[1758096496376,1e-08,236.58,236.57,78.66699581]
[1758096497268,1e-08,236.58,236.57,83.44740417]
[1758096497875,1e-08,236.58,236.57,57.44740417]
[1758096498056,1e-08,236.61,236.6,44.66032551]
[1758096498255,1e-08,236.61,236.6,79.16032551]
[1758096498450,0.06,236.63,236.61,13.87991715]
[1758096498656,0.06,236.63,236.62,52.87600237]
[1758096499085,1e-08,236.63,236.62,53.16032551]
[1758096499584,1e-08,236.63,236.62,57.38651095]
[1758096501478,1e-08,236.63,236.62,57.34651095]
[1758096502376,1e-08,236.65,236.64,39.59559401]
[1758096502554,1e-08,236.65,236.64,79.10032551]
[1758096502761,1e-08,236.67,236.65,13.87991715]
[1758096502971,1e-08,236.67,236.66,79.08032551]
[1758096503180,1e-08,236.67,236.66,44.66032551]
[1758096503378,1e-08,236.67,236.66,79.08032551]
[1758096503861,1e-08,236.67,236.66,57.30579665]
[1758096504254,1e-08,236.67,236.66,83.28579665]
[1758096504582,1e-08,236.67,236.66,57.28579665]
[1758096504952,1e-08,236.67,236.66,18.10538829]
[1758096505166,1e-08,236.67,236.66,17.96322672]
[1758096505375,4.78040837,236.67,236.66,17.82106515]
[1758096505584,1e-08,236.67,236.66,52.22106515]
[1758096505781,4.78040837,236.67,236.66,52.22106515]
[1758096506681,1e-08,236.67,236.66,52.22106515]
[1758096507498,1e-08,236.67,236.66,52.50538829]
[1758096508759,1e-08,236.67,236.66,52.22106515]
[1758096510484,1e-08,236.67,236.66,17.82106515]
[1758096510785,1e-08,236.67,236.66,52.16106515]
[1758096513067,1e-08,236.67,236.66,52.44538829]
[1758096513467,1e-08,236.67,236.66,57.22579665]
[1758096514878,1e-08,236.67,236.66,52.44538829]
[1758096515476,1e-08,236.67,236.66,18.10538829]
[1758096515671,1e-08,236.67,236.66,52.32538829]
[1758096516168,1e-08,236.67,236.66,18.10538829]
[1758096516389,1e-08,236.67,236.66,52.32538829]
[1758096519976,1e-08,236.67,236.66,18.10538829]
[1758096520178,1e-08,236.67,236.66,52.26538829]
[1758096521290,1e-08,236.67,236.66,57.04579665]
[1758096521790,1e-08,236.67,236.66,54.29023297]
[1758096523074,0.06,236.7,236.69,41.90476183]
[1758096523075,1e-08,236.7,236.69,41.90476183]
[1758096523280,1e-08,236.7,236.69,76.02476183]
[1758096523479,0.06,236.75,236.74,13.59559401]
[1758096523680,0.06,236.75,236.74,50.00476183]
[1758096524695,0.06,236.75,236.74,54.22880508]
[1758096527110,0.06,236.75,236.74,54.6512094]
[1758096527591,1e-08,236.75,236.74,54.6512094]
[1758096527774,1e-08,236.75,236.74,20.5512094]
[1758096527979,1e-08,236.75,236.74,54.5912094]
[1758096528580,1e-08,236.75,236.74,54.18880508]
[1758096529195,1e-08,236.75,236.74,54.6112094]
[1758096530782,1e-08,236.75,236.74,54.6412094]
[1758096531492,1e-08,236.75,236.74,54.6212094]
[1758096531679,1e-08,236.75,236.74,54.19880508]
[1758096532785,1e-08,236.75,236.74,55.88974376]
[1758096533307,1e-08,236.75,236.74,135.38974376]
[1758096536112,1e-08,236.75,236.74,99.04057594]
[1758096536289,1e-08,236.75,236.74,53.58057594]
[1758096536488,1e-08,236.75,236.74,52.1739604]
[1758096536683,1e-08,236.75,236.74,51.88963726]
[1758096536684,2.02484469,236.75,236.74,51.88963726]
[1758096537088,2.02484469,236.75,236.74,18.1339604]
[1758096537290,2.02484469,236.75,236.74,52.1739604]
[1758096538711,1e-08,236.75,236.74,52.1739604]
[1758096538903,2.02484469,236.75,236.74,52.1739604]
[1758096539101,1e-08,236.75,236.74,52.1739604]
[1758096539503,2.02484469,236.75,236.74,52.1739604]
[1758096540818,1e-08,236.75,236.74,52.1739604]
[1758096541321,2.02484469,236.75,236.74,0.03]
[1758096541803,1.29681932,236.75,236.74,34.07]
[1758096542011,1.29681932,236.75,236.74,0.03]
[1758096542386,1e-08,236.75,236.74,34.07]
[1758096542592,1.29681932,236.75,236.74,34.07]
[1758096542808,1.29681932,236.75,236.74,0.03]
[1758096543007,1.29681932,236.75,236.74,34.07]
[1758096546294,1e-08,236.75,236.74,34.07]
[1758096547294,1.29681932,236.75,236.74,34.07]
[1758096553526,1e-08,236.75,236.74,34.07]
[1758096553709,1.29681932,236.75,236.74,34.07]
[1758096554414,1.29681932,236.75,236.74,0.03]
[1758096554640,5.52068415,236.75,236.74,34.07]
[1758096555523,1.29681932,236.75,236.74,34.07]
[1758096556131,1.29681932,236.75,236.74,0.03]
[1758096556310,1.29681932,236.75,236.74,34.07]
[1758096556713,5.52068415,236.75,236.74,34.07]
[1758096563333,5.52068415,236.75,236.74,34.05]
[1758096564030,1e-08,236.75,236.74,34.05]
[1758096564235,1.29681932,236.75,236.74,34.05]
[1758096564725,1.29681932,236.75,236.74,0.03]
[1758096565035,1.29681932,236.75,236.74,34.05]
[1758096565831,1e-08,236.75,236.74,34.05]
[1758096567029,1e-08,236.75,236.74,47.64559401]
[1758096567727,1e-08,236.75,236.74,52.1539604]
[1758096567923,1e-08,236.75,236.74,53.45077971]
[1758096569750,1e-08,236.75,236.74,53.87318403]
[1758096571236,1e-08,236.75,236.74,52.57636472]
[1758096571431,1e-08,236.75,236.74,53.87318403]
[1758096575463,1e-08,236.75,236.74,53.45077971]
[1758096575657,1e-08,236.75,236.74,53.43077971]
[1758096575855,6.48409656,236.75,236.74,0.03]
[1758096576155,26.0,236.72,236.69,0.03]
[1758096576363,1.29681931,236.7,236.62,32.14]
[1758096576555,26.0,236.72,236.63,7.18]
[1758096576938,12.69438274,236.7,236.63,7.18]
[1758096577641,1.29681931,236.64,236.63,7.18]
[1758096578174,4.22544628,236.67,236.63,7.18]
[1758096578358,1.29681931,236.64,236.63,7.18]
[1758096584053,1.29681931,236.64,236.58,13.59559401]
[1758096584242,4.22572049,236.65,236.61,34.02]
[1758096584558,4.22572049,236.65,236.63,0.03]
[1758096585167,4.2252926,236.67,236.63,0.03]
[1758096585342,1.29681931,236.64,236.63,0.03]
[1758096586844,14.78606379,236.71,236.63,0.03]
[1758096587049,1.29681931,236.64,236.63,0.03]
[1758096587266,14.78606379,236.71,236.63,0.03]
[1758096587459,30.22457859,236.71,236.63,0.03]
[1758096587769,1.29681931,236.66,236.63,0.03]
[1758096587945,4.22438094,236.73,236.63,0.31432314]
[1758096588145,1.29681931,236.68,236.63,0.31432314]
[1758096588566,1.29681931,236.68,236.65,13.59559401]
[1758096588765,1.29681931,236.68,236.64,4.22582826]
[1758096588766,1.29681931,236.68,236.66,34.02]
[1758096589766,0.79681931,236.68,236.66,34.02]
[1758096590869,4.22447792,236.72,236.66,34.02]
[1758096591053,1.29681931,236.67,236.66,34.02]
[1758096596465,1.29681931,236.71,236.67,17.82088661]
[1758096596670,4.2240109,236.75,236.67,17.82088661]
[1758096596860,1.29681931,236.74,236.68,0.28432314]
[1758096597180,1.29681931,236.74,236.7,13.59559401]
[1758096597856,1.29681931,236.74,236.7,17.82020354]
[1758096598558,1e-08,236.75,236.7,17.82020354]
[1758096598559,1.29681932,236.75,236.7,17.82020354]
[1758096599077,1.29681931,236.74,236.7,17.82020354]
[1758096599276,1.29681931,236.73,236.7,17.82020354]
[1758096600477,1.29681931,236.73,236.7,13.59559401]
[1758096601360,1.29681931,236.73,236.7,17.82034249]
[1758096601983,2.02609767,236.73,236.7,17.82034249]
[1758096602461,2.08609767,236.73,236.7,17.82034249]
[1758096607369,0.06,236.73,236.7,17.82034249]
[1758096607781,0.06,236.73,236.71,0.28432314]
[1758096607969,0.06,236.73,236.72,47.87991715]
[1758096609579,0.06,236.73,236.72,52.10431728]
[1758096617492,0.06,236.73,236.72,13.87991715]
[1758096617663,0.06,236.73,236.64,4.22582826]
[1758096617869,2.02609767,236.67,236.65,33.98]
[1758096618095,2.02609767,236.67,236.66,13.59559401]
[1758096618968,2.02609767,236.67,236.66,13.87991715]
[1758096619565,2.02609767,236.68,236.67,4.2252926]
[1758096619769,2.02609767,236.68,236.67,51.78088661]
[1758096620868,4.28423045,236.73,236.67,51.78088661]
[1758096621072,2.02609767,236.68,236.67,51.78088661]
[1758096623588,4.28423045,236.73,236.67,51.78088661]
[1758096623792,2.02609767,236.68,236.67,51.78088661]
[1758096628974,2.02609767,236.69,236.67,51.78088661]
[1758096629798,2.02609767,236.72,236.68,13.59559401]
[1758096629968,2.02609767,236.72,236.69,33.96]
[1758096630767,2.02609767,236.71,236.69,33.96]
[1758096631284,2.02609767,236.71,236.69,38.18489505]
[1758096635169,2.02609767,236.72,236.69,38.18489505]
[1758096636870,0.06,236.73,236.7,15.90601482]
[1758096637114,0.06,236.73,236.72,20.13041495]
[1758096640282,0.06,236.73,236.72,18.10431728]
[1758096640596,2.08609767,236.73,236.72,47.51559401]
[1758096641103,2.08609767,236.73,236.72,33.92]
[1758096641806,2.08609767,236.73,236.7,13.73775558]
[1758096642010,0.06,236.73,236.71,33.92]
[1758096642712,0.06,236.73,236.68,0.03]
[1758096642893,0.06,236.73,236.69,33.92]
[1758096643216,2.02609767,236.7,236.69,33.92]
[1758096646013,0.06,236.73,236.69,33.92]
[1758096646192,2.02609767,236.7,236.69,33.92]
[1758096647115,0.06,236.73,236.69,33.92]
[1758096647408,2.02609767,236.71,236.69,33.92]
[1758096648796,2.02609767,236.7,236.69,33.92]
[1758096649001,2.02609767,236.71,236.69,33.92]
[1758096649803,2.02609767,236.71,236.68,0.03]
[1758096650009,2.02609767,236.69,236.68,0.03]
[1758096650316,2.02609767,236.69,236.68,33.93]
[1758096652191,2.02609767,236.69,236.68,0.03]
[1758096654693,6.25103323,236.69,236.68,0.03]
[1758096655202,7.3080796,236.69,236.68,0.03]
[1758096655521,5.28198193,236.69,236.68,0.03]
[1758096655702,7.3080796,236.69,236.68,0.03]
[1758096661026,17.87041852,236.69,236.66,0.03]
[1758096661224,2.02609767,236.67,236.66,0.03]
[1758096661804,28.02609767,236.67,236.66,0.03]
[1758096662005,29.083221,236.67,236.66,0.03]
[1758096662314,32.25139027,236.67,236.66,0.03]
[1758096662925,33.3085136,236.67,236.66,0.03]
[1758096663241,33.3085136,236.67,236.65,0.03]
[1758096663242,26.0,236.64,236.63,0.03]
[1758096663411,26.0,236.64,236.6,0.03]
[1758096663412,31.10931867,236.64,236.6,0.03]
[1758096663728,28.59777976,236.61,236.6,0.03]
[1758096664028,32.4944494,236.61,236.6,0.03]
[1758096664211,36.72081345,236.61,236.58,0.03]
[1758096664411,1.29888988,236.59,236.57,0.03]
[1758096664708,1.29888988,236.58,236.57,0.03]
[1758096664910,4.22636405,236.61,236.57,0.03]
[1758096665106,1.29888988,236.58,236.57,0.03]
[1758096666330,1.29888988,236.58,236.54,0.03]
[1758096666632,1.29888988,236.55,236.54,0.03]
[1758096666834,27.29888988,236.55,236.52,0.03]
[1758096667134,1.29888988,236.53,236.52,0.03]
[1758096668249,5.52668339,236.53,236.52,0.03]
[1758096669239,5.52668339,236.53,236.51,0.03]
[1758096669538,1.29888988,236.52,236.51,0.03]
[1758096669725,27.29888988,236.52,236.51,0.03]
[1758096669915,1.29888988,236.52,236.51,0.03]
[1758096672312,4.22779351,236.53,236.51,0.03]
[1758096672518,1.29888988,236.52,236.51,0.03]
[1758096673826,14.79540073,236.56,236.51,0.03]
[1758096674015,1.29888988,236.52,236.51,0.03]
[1758096675440,4.22764135,236.54,236.51,0.03]
[1758096675642,1.29888988,236.52,236.51,0.03]
[1758096676346,1.29888988,236.54,236.51,0.03]
[1758096677117,1.29888988,236.52,236.51,0.03]
[1758096679321,4.22761671,236.54,236.51,0.03]
[1758096679636,10.56724997,236.58,236.51,0.03]
[1758096681433,1.29888988,236.52,236.51,0.03]
[1758096684840,4.22728213,236.56,236.51,0.03]
[1758096688443,4.22707866,236.57,236.51,0.03]
[1758096690457,1.29888988,236.52,236.51,0.03]
[1758096691159,1.29888988,236.52,236.46,0.03]
[1758096691160,6.4944494,236.52,236.46,0.03]
[1758096691333,6.4944494,236.47,236.46,0.03]
[1758096691734,6.4944494,236.47,236.21,138.79555952]
[1758096691735,26.0,236.44,236.29,33.53749029]
[1758096691961,26.0,236.44,236.09,4.23567283]
[1758096691962,27.29888988,236.31,236.09,4.23567283]
[1758096692133,36.11885072,236.3,236.09,16.88038501]
[1758096692336,1.29888988,236.22,236.12,1.29888988]
[1758096692542,4.23202201,236.3,236.13,1.29888988]
[1758096692846,1.05898959,236.29,236.14,35.06]
[1758096693039,1.29888988,236.22,236.17,26.0]
[1758096693458,1.29888988,236.22,236.14,35.06]
[1758096693635,1.29888988,236.22,236.17,26.0]
[1758096693834,1.29888988,236.22,236.15,4.23459665]
[1758096694154,1.29888988,236.18,236.16,26.0]
[1758096694346,1.29888988,236.19,236.18,26.0]
[1758096694944,1.29888988,236.19,236.16,13.59559401]
[1758096695148,1.29888988,236.19,236.17,26.0]
[1758096696740,1.29888988,236.19,236.14,4.23469413]
[1758096696963,1.29888988,236.17,236.15,35.0]
[1758096697543,1.29888988,236.2,236.15,35.0]
[1758096699248,1.29888988,236.2,236.16,4.23441734]
[1758096700757,1.29888988,236.24,236.16,14.8204607]
[1758096701464,1.29888988,236.23,236.16,14.8204607]
[1758096702167,1.29888988,236.23,236.16,16.11935058]
[1758096702862,3.49524306,236.4,236.22,1.29888988]
[1758096703165,3.49524306,236.4,236.17,0.14216157]
[1758096703166,1.29888988,236.26,236.17,0.14216157]
[1758096703480,1.29888988,236.26,236.16,40.8204607]
[1758096703481,1.29888988,236.23,236.18,48.53559401]
[1758096704040,1.29888988,236.24,236.18,48.53559401]
[1758096704276,1.29888988,236.23,236.19,4.2338795]
[1758096705357,1.29888988,236.24,236.19,4.2338795]
[1758096705750,4.23199035,236.3,236.19,14.81857825]
[1758096705945,1.29888988,236.24,236.19,14.81857825]
[1758096708255,31.19555952,236.34,236.2,13.59559401]
[1758096708447,1.29888988,236.28,236.2,14.89448389]
[1758096708967,1.29888988,236.27,236.2,13.59559401]
[1758096709170,1.29888988,236.26,236.2,13.59559401]
[1758096709366,1.29888988,236.25,236.2,13.59559401]
[1758096709948,1.29888988,236.25,236.21,34.8]
[1758096710372,1.29888988,236.25,236.22,4.2333418]
[1758096711660,1.29888988,236.26,236.22,4.2333418]
[1758096712778,1.29888988,236.27,236.22,4.2333418]
[1758096713651,1.29888988,236.26,236.22,4.2333418]
[1758096715053,1.29888988,236.26,236.23,38.93303917]
[1758096716143,4.2919414,236.3,236.23,38.93303917]
[1758096716348,1.29888988,236.26,236.23,38.93303917]
[1758096718267,1.29888988,236.24,236.21,34.62]
[1758096718464,1.29888988,236.22,236.21,34.62]
[1758096720072,4.23256502,236.27,236.21,34.62]
[1758096720266,1.29888988,236.23,236.21,34.62]
[1758096720657,1.29888988,236.24,236.21,38.85349409]
[1758096721085,4.23221058,236.29,236.19,0.03]
[1758096721086,1.29888988,236.23,236.22,34.64]
[1758096721457,1.29888988,236.23,236.19,0.03]
[1758096721658,1.29888988,236.2,236.19,0.03]
[1758096721860,1.29888988,236.2,236.19,34.65]
[1758096722581,4.23267638,236.26,236.19,38.88375117]
[1758096722780,1.29888988,236.24,236.19,38.88375117]
[1758096723868,1.29888988,236.23,236.2,34.58]
[1758096724068,1.29888988,236.24,236.2,34.58]
[1758096724667,1.29888988,236.23,236.2,34.58]
[1758096725388,1.29888988,236.21,236.19,0.03]
[1758096725599,4.23324157,236.23,236.19,34.59]
[1758096725600,1.29888988,236.2,236.19,34.59]
[1758096725787,2.03534341,236.2,236.19,34.59]
[1758096726177,4.23324157,236.23,236.19,34.59]
[1758096726372,2.03534341,236.2,236.19,34.59]
[1758096727981,2.03534341,236.2,236.19,0.03]
[1758096728185,3.09454026,236.2,236.19,0.03]
[1758096730673,1.05919685,236.2,236.19,0.03]
[1758096731108,4.23320252,236.23,236.19,0.03]
[1758096731288,1.05909564,236.22,236.19,0.03]
[1758096731603,1.05909564,236.21,236.19,0.03]
[1758096731802,1.05909564,236.2,236.19,0.03]
[1758096733476,3.85436723,236.2,236.19,0.03]
[1758096734193,1.05909564,236.2,236.19,0.03]
[1758096734397,3.85436723,236.2,236.19,0.03]
[1758096736173,3.85436723,236.2,236.17,34.42]
[1758096736403,3.85436723,236.19,236.17,34.42]
[1758096736699,3.85436723,236.18,236.17,34.42]
[1758096737503,3.85436723,236.18,236.17,36.45534341]
[1758096737997,3.85436723,236.18,236.17,34.42]
[1758096738175,3.85436723,236.18,236.17,36.45534341]
[1758096738502,3.85436723,236.18,236.17,34.42]
[1758096738700,3.85436723,236.18,236.17,36.45534341]
[1758096738997,3.85436723,236.18,236.17,34.42]
[1758096739389,3.85436723,236.18,236.17,36.45534341]
[1758096739697,3.85436723,236.18,236.17,34.42]
[1758096740372,3.85436723,236.18,236.16,0.03]
[1758096740688,2.03534341,236.19,236.17,34.32]
[1758096740996,3.88335981,236.18,236.16,0.03]
[1758096741198,7.71514306,236.21,236.17,34.32]
[1758096741388,2.03534341,236.19,236.17,34.32]
[1758096741588,3.88315528,236.18,236.17,34.32]
[1758096741906,3.88315528,236.18,236.17,34.3]
[1758096742107,5.91849869,236.18,236.17,34.3]
[1758096744082,3.88315528,236.18,236.17,34.3]
[1758096744379,6.26870432,236.22,236.17,34.3]
[1758096744581,3.88126837,236.21,236.17,34.3]
[1758096744781,3.88126837,236.2,236.17,34.3]
[1758096745109,2.82216418,236.19,236.17,34.3]
[1758096745296,2.03534341,236.23,236.17,34.3]
[1758096745606,2.03534341,236.18,236.16,0.03]
[1758096745823,5.51688726,236.21,236.16,0.03]
[1758096745824,5.91644928,236.17,236.16,0.03]
[1758096746180,10.15068732,236.17,236.16,0.03]
[1758096746583,10.15095885,236.17,236.16,0.03]
[1758096747196,8.11561544,236.17,236.16,0.03]
[1758096747509,7.32895643,236.17,236.16,0.03]
[1758096747692,10.15095885,236.17,236.16,0.03]
[1758096748110,7.32895643,236.17,236.16,0.03]
[1758096748517,7.32895686,236.17,236.16,0.03]
[1758096749319,6.26958145,236.17,236.16,0.03]
[1758096749918,5.29361345,236.17,236.16,0.03]
[1758096750103,10.14782481,236.17,236.16,0.03]
[1758096750292,7.32895686,236.17,236.16,0.03]
[1758096750497,10.14782481,236.17,236.16,0.03]
[1758096750697,7.32895686,236.17,236.16,0.03]
[1758096752125,5.29361345,236.17,236.16,0.03]
[1758096752425,7.32906208,236.17,236.16,0.03]
[1758096753021,39.37017058,236.17,235.98,10.59382117]
[1758096753208,2.03534341,236.05,235.98,2.03534341]
[1758096753527,2.81886795,236.13,235.98,2.03534341]
[1758096753700,2.03534341,236.05,235.98,2.03534341]
[1758096753906,2.03534341,236.03,235.96,6.27334985]
[1758096754106,26.0,236.1,235.98,2.03534341]
[1758096754334,2.03534341,236.05,235.98,2.03534341]
[1758096754627,2.03534341,236.04,235.97,36.37534341]
[1758096754820,26.0,236.1,236.0,2.03534341]
[1758096754821,2.03534341,236.07,236.0,2.03534341]
[1758096755027,2.03534341,236.08,236.02,4.23692907]
[1758096755532,2.03534341,236.06,236.0,4.2371696]
[1758096756216,2.03534341,236.05,236.0,4.2371696]
[1758096756723,2.03534341,236.06,236.01,34.3]
[1758096757123,4.2357414,236.09,236.01,34.3]
[1758096757322,2.03534341,236.05,235.98,4.23753093]
[1758096757524,2.03534341,236.08,235.96,13.59559401]
[1758096757730,2.03534341,236.01,235.97,34.3]
[1758096758641,2.03534341,236.01,235.95,31.32587759]
[1758096758851,2.03534341,235.97,235.95,31.32587759]
[1758096759205,2.03534341,235.98,235.95,31.32587759]
[1758096759405,4.23675791,236.03,235.95,31.32587759]
[1758096759611,2.03534341,235.99,235.95,31.32587759]
[1758096759914,4.23675791,236.03,235.95,31.32587759]
[1758096760114,2.03534341,235.98,235.95,31.32587759]
[1758096760324,4.23675791,236.03,235.95,35.56403529]
[1758096760530,2.03534341,235.99,235.95,35.56403529]
[1758096760720,2.03534341,235.99,235.95,69.82403529]
[1758096761264,2.03534341,236.0,235.95,69.82403529]
[1758096761747,2.03534341,235.99,235.95,69.82403529]
[1758096762052,2.03534341,236.02,235.95,71.8593787]
[1758096762233,41.1756226,236.13,235.95,71.8593787]
[1758096762234,2.03534341,236.04,235.97,2.03534341]
[1758096762614,2.03534341,236.04,235.98,4.23764725]
[1758096762918,2.03534341,236.04,235.98,6.27299066]
[1758096763113,4.23622198,236.06,235.96,13.59559401]
[1758096763114,2.03534341,236.02,235.96,19.86880184]
[1758096763532,2.03534341,236.01,235.97,34.24]
[1758096764121,4.23622198,236.06,235.97,34.24]
[1758096764323,2.03534341,236.01,235.97,38.47776244]
[1758096764613,2.03534341,236.02,235.97,38.47776244]
[1758096765240,2.03534341,236.02,235.98,34.22]
[1758096765815,23.50725862,236.17,236.01,2.03534341]
[1758096766122,23.50725862,236.17,235.98,34.22]
[1758096766123,3.86558793,236.16,235.99,13.59559401]
[1758096766320,2.03534341,236.11,236.05,2.03534341]
[1758096766520,14.82108828,236.15,236.05,34.2]
[1758096766742,2.03534341,236.09,236.05,34.2]
[1758096767618,2.03534341,236.1,236.05,34.2]
[1758096767833,2.03534341,236.11,236.05,36.23534341]
[1758096768037,4.23459665,236.15,236.05,36.23534341]
[1758096768243,2.03534341,236.11,236.06,4.23621113]
[1758096768737,2.03534341,236.13,236.07,2.03534341]
[1758096768932,2.03534341,236.15,236.09,2.03534341]
[1758096769131,2.03534341,236.15,236.1,34.18]
[1758096769540,2.03534341,236.14,236.1,34.18]
[1758096769921,2.03534341,236.15,236.1,34.18]
[1758096770226,2.03534341,236.15,236.1,38.41538007]
[1758096771231,2.03534341,236.17,236.1,38.41538007]
[1758096771418,0.06,236.2,236.11,2.03534341]
[1758096771625,2.03534341,236.18,236.11,2.03534341]
[1758096771931,0.06,236.2,236.11,2.03534341]
[1758096772132,2.03534341,236.18,236.12,2.03534341]
[1758096772333,2.03534341,236.18,236.13,4.23495532]
[1758096772533,0.06,236.2,236.13,4.23495532]
[1758096772848,2.03534341,236.18,236.14,34.12]
[1758096774256,4.293724,236.2,236.14,38.354744]
[1758096774430,2.03534341,236.18,236.14,38.354744]
[1758096774929,0.06,236.2,236.14,40.39008741]
[1758096775243,2.09534341,236.2,236.14,40.39008741]
[1758096775939,2.09534341,236.2,236.14,6.27008741]
[1758096776246,2.09534341,236.2,236.15,34.08]
[1758096776854,0.06,236.2,236.15,34.08]
[1758096777044,2.09534341,236.2,236.15,34.08]
[1758096778552,2.09534341,236.2,236.16,34.06]
[1758096780549,2.09534341,236.2,236.16,34.04]
[1758096780755,2.09534341,236.2,236.09,4.23567283]
[1758096780756,2.03534341,236.17,235.97,110.0]
[1758096780958,2.03534341,236.05,235.99,15.63093742]
[1758096781135,2.03534341,236.07,236.01,2.03534341]
[1758096781344,2.03534341,236.08,236.01,2.03534341]
[1758096781652,2.03534341,236.09,236.02,2.03534341]
[1758096781830,2.03534341,236.09,236.03,34.04]
[1758096782453,4.23492619,236.14,236.05,2.03534341]
[1758096782746,2.03534341,236.12,236.04,6.27191348]
[1758096782951,4.23492619,236.14,236.05,34.04]
[1758096782952,2.03534341,236.11,236.05,34.04]
[1758096783154,2.03534341,236.12,236.05,34.04]
[1758096783953,6.27051768,236.12,236.05,38.27627766]
[1758096784450,2.03534341,236.06,235.98,34.04]
[1758096784748,4.23517427,236.12,235.98,34.04]
[1758096784749,2.03534341,236.04,235.98,34.04]
[1758096784952,12.72777412,236.11,235.98,34.04]
[1758096785249,2.03534341,236.11,236.03,2.03534341]
[1758096785427,2.03534341,236.11,236.04,34.14]
[1758096785751,4.23567283,236.09,236.04,34.14]
[1758096785934,5.53954014,236.09,236.04,34.14]
[1758096787232,5.53954014,236.09,236.04,34.12]
[1758096787848,4.23531404,236.11,236.04,34.12]
[1758096788053,1.30386731,236.07,236.0,1.30386731]
[1758096788247,1.30386731,236.05,236.01,34.12]
[1758096788632,1.30386731,236.05,235.98,0.03]
[1758096788841,1.30386731,236.03,235.99,34.12]
[1758096789238,26.0,236.08,235.99,34.12]
[1758096789239,1.30386731,236.02,235.99,34.12]
[1758096789438,1.30386731,236.03,235.99,34.12]
[1758096790554,5.54063742,236.03,235.99,34.12]
[1758096790955,1.30386731,236.03,235.99,34.12]
[1758096791161,4.23672162,236.04,235.98,0.03]
[1758096791362,1.30386731,236.03,235.98,0.03]
[1758096791563,1.30386731,236.03,235.98,34.11]
[1758096792060,1.30386731,236.03,235.98,0.03]
[1758096792061,1.30386731,236.0,235.98,0.03]
[1758096793466,27.30386731,236.0,235.98,0.03]
[1758096793648,1.30386731,235.99,235.77,3.37597678]
[1758096793970,1.30386731,235.91,235.81,1.30386731]
[1758096794140,30.23780324,235.98,235.82,13.59559401]
[1758096794341,1.30386731,235.96,235.86,1.30386731]
[1758096794557,30.23734542,236.0,235.89,13.59559401]
[1758096794843,1.30386731,235.97,235.9,34.32]
[1758096795559,1.30386731,235.97,235.88,13.59559401]
[1758096795748,1.30386731,235.97,235.91,34.34]
[1758096796065,1.30386731,235.97,235.92,4.23872499]
[1758096796455,1.30386731,235.97,235.92,38.55872499]
[1758096797765,4.23716552,236.01,235.92,38.55872499]